[Event "Titled Tuesday Blitz August 09 Late 2022"]
[White "Nazaretyan, Tigran"]
[Black "Kevlishvili, Robby"]
[WhiteFideId "24162345"]
[BlackFideId "1040634"]
[WhiteElo "2183"]
[BlackElo "2585"]
[Result "0-1"]
[Round "03"]
[TimeControl "180+1"]
[Date "2022.08.09"]
[WhiteClock "0:00:02"]
[BlackClock "0:00:34"]

1. d4 {[%clk 0:02:59]}  d5 {[%clk 0:02:59]} 2. c4 {[%clk 0:02:58]}  c6 {[%clk 0:02:58]} 3. Nf3 {[%clk 0:02:57]}  Nf6 {[%clk 0:02:59]} 4. Nc3 {[%clk 0:02:57]}  a6 {[%clk 0:02:59]} 5. e3 {[%clk 0:02:50]}  Bf5 {[%clk 0:02:56]} 6. Bd3 {[%clk 0:02:46]}  Bxd3 {[%clk 0:02:56]} 7. Qxd3 {[%clk 0:02:46]}  e6 {[%clk 0:02:57]} 8. a3 {[%clk 0:02:45]}  Nbd7 {[%clk 0:02:55]} 9. e4 {[%clk 0:02:43]}  dxc4 {[%clk 0:02:47]} 10. Qxc4 {[%clk 0:02:43]}  Rc8 {[%clk 0:02:48]} 11. e5 {[%clk 0:02:37]}  Nd5 {[%clk 0:02:47]} 12. Ne4 {[%clk 0:02:26]}  c5 {[%clk 0:02:20]} 13. Bg5 {[%clk 0:02:23]}  Qc7 {[%clk 0:02:07]} 14. Rc1 {[%clk 0:02:17]}  cxd4 {[%clk 0:02:06]} 15. Qxd4 {[%clk 0:01:46]}  Qxc1+ {[%clk 0:02:03]} 16. Bxc1 {[%clk 0:01:45]}  Rxc1+ {[%clk 0:02:04]} 17. Kd2 {[%clk 0:01:45]}  Rxh1 {[%clk 0:02:04]} 18. Qa7 {[%clk 0:01:45]}  Be7 {[%clk 0:01:31]} 19. Qa8+ {[%clk 0:01:38]}  Bd8 {[%clk 0:01:31]} 20. Nd6+ {[%clk 0:01:38]}  Ke7 {[%clk 0:01:31]} 21. Qxb7 {[%clk 0:01:37]}  Bc7 {[%clk 0:01:24]} 22. Nd4 {[%clk 0:01:30]}  Nxe5 {[%clk 0:01:18]} 23. Ne4 {[%clk 0:00:57]}  Rb8 {[%clk 0:01:16]} 24. Qxa6 {[%clk 0:00:30]}  Rxb2+ {[%clk 0:01:16]} 25. Nc2 {[%clk 0:00:30]}  Ra1 {[%clk 0:00:57]} 26. f4 {[%clk 0:00:19]}  Rxc2+ {[%clk 0:00:57]} 27. Kxc2 {[%clk 0:00:18]}  Nb4+ {[%clk 0:00:56]} 28. Kb2 {[%clk 0:00:17]}  Nxa6 {[%clk 0:00:55]} 29. Kxa1 {[%clk 0:00:17]}  Nd3 {[%clk 0:00:53]} 30. g3 {[%clk 0:00:17]}  Nxf4 {[%clk 0:00:49]} 31. gxf4 {[%clk 0:00:17]}  Bxf4 {[%clk 0:00:49]} 32. Kb2 {[%clk 0:00:16]}  Bxh2 {[%clk 0:00:49]} 33. Kc3 {[%clk 0:00:15]}  h5 {[%clk 0:00:49]} 34. Kc4 {[%clk 0:00:15]}  h4 {[%clk 0:00:49]} 35. Kb5 {[%clk 0:00:14]}  Nc7+ {[%clk 0:00:49]} 36. Kc6 {[%clk 0:00:13]}  Bf4 {[%clk 0:00:48]} 37. Nf2 {[%clk 0:00:11]}  g5 {[%clk 0:00:39]} 38. Nh3 {[%clk 0:00:10]}  f6 {[%clk 0:00:40]} 39. a4 {[%clk 0:00:09]}  Bd6 {[%clk 0:00:39]} 40. a5 {[%clk 0:00:08]}  g4 {[%clk 0:00:39]} 41. Nf2 {[%clk 0:00:07]}  f5 {[%clk 0:00:40]} 42. Nd1 {[%clk 0:00:04]}  h3 {[%clk 0:00:38]} 43. Ne3 {[%clk 0:00:04]}  h2 {[%clk 0:00:38]} 44. Ng2 {[%clk 0:00:03]}  h1=Q {[%clk 0:00:37]} 45. Kb7 {[%clk 0:00:04]}  Qxg2+ {[%clk 0:00:37]} 46. Ka7 {[%clk 0:00:02]}  Qa8+ {[%clk 0:00:34]} 0-1


[Site "https://www.chess.com"]

[Event "Titled Tuesday Blitz August 09 Late 2022"]
[White "Romanchuk, Viktor"]
[Black "Alekseenko, Kirill"]
[WhiteFideId "14109271"]
[BlackFideId "4135539"]
[WhiteElo "2242"]
[BlackElo "2682"]
[Result "0-1"]
[Round "03"]
[TimeControl "180+1"]
[Date "2022.08.09"]
[WhiteClock "0:00:07"]
[BlackClock "0:00:23"]

1. d4 {[%clk 0:03:00]}  d5 {[%clk 0:02:59]} 2. c4 {[%clk 0:03:00]}  dxc4 {[%clk 0:03:00]} 3. e3 {[%clk 0:02:59]}  e5 {[%clk 0:03:00]} 4. Bxc4 {[%clk 0:03:00]}  Nc6 {[%clk 0:03:00]} 5. Ne2 {[%clk 0:02:57]}  Bd6 {[%clk 0:02:58]} 6. Nbc3 {[%clk 0:02:53]}  Nf6 {[%clk 0:02:58]} 7. O-O {[%clk 0:02:51]}  O-O {[%clk 0:02:57]} 8. Nb5 {[%clk 0:02:50]}  Qe7 {[%clk 0:02:55]} 9. Nxd6 {[%clk 0:02:49]}  cxd6 {[%clk 0:02:55]} 10. dxe5 {[%clk 0:02:49]}  dxe5 {[%clk 0:02:56]} 11. Ng3 {[%clk 0:02:39]}  Be6 {[%clk 0:02:56]} 12. Bxe6 {[%clk 0:02:35]}  Qxe6 {[%clk 0:02:56]} 13. Bd2 {[%clk 0:02:34]}  Rfd8 {[%clk 0:02:52]} 14. Qe2 {[%clk 0:02:34]}  g6 {[%clk 0:02:51]} 15. Rfd1 {[%clk 0:02:33]}  h5 {[%clk 0:02:51]} 16. h3 {[%clk 0:02:15]}  h4 {[%clk 0:02:50]} 17. Nf1 {[%clk 0:02:13]}  Ne4 {[%clk 0:02:49]} 18. Be1 {[%clk 0:02:09]}  Rxd1 {[%clk 0:02:45]} 19. Qxd1 {[%clk 0:02:10]}  Rd8 {[%clk 0:02:43]} 20. Qc2 {[%clk 0:02:04]}  Nd6 {[%clk 0:02:22]} 21. f3 {[%clk 0:01:50]}  Nf5 {[%clk 0:02:21]} 22. b3 {[%clk 0:01:40]}  Qd5 {[%clk 0:02:10]} 23. Bf2 {[%clk 0:01:25]}  Qd6 {[%clk 0:01:51]} 24. Qc4 {[%clk 0:01:11]}  Qe7 {[%clk 0:01:49]} 25. Rc1 {[%clk 0:01:01]}  Kg7 {[%clk 0:01:49]} 26. Qc3 {[%clk 0:01:00]}  Qf6 {[%clk 0:01:48]} 27. Qe1 {[%clk 0:00:52]}  g5 {[%clk 0:01:42]} 28. Rd1 {[%clk 0:00:51]}  Rxd1 {[%clk 0:01:34]} 29. Qxd1 {[%clk 0:00:52]}  Qd6 {[%clk 0:01:34]} 30. Qxd6 {[%clk 0:00:43]}  Nxd6 {[%clk 0:01:34]} 31. e4 {[%clk 0:00:43]}  Nb5 {[%clk 0:01:19]} 32. Ne3 {[%clk 0:00:39]}  Nc3 {[%clk 0:01:09]} 33. a3 {[%clk 0:00:32]}  f6 {[%clk 0:01:04]} 34. Nd5 {[%clk 0:00:30]}  Nb5 {[%clk 0:00:54]} 35. a4 {[%clk 0:00:27]}  Nbd4 {[%clk 0:00:54]} 36. b4 {[%clk 0:00:28]}  Ne6 {[%clk 0:00:52]} 37. b5 {[%clk 0:00:26]}  Ncd4 {[%clk 0:00:52]} 38. Kf1 {[%clk 0:00:25]}  Kf7 {[%clk 0:00:52]} 39. Ke1 {[%clk 0:00:25]}  Nc5 {[%clk 0:00:44]} 40. Nc3 {[%clk 0:00:20]}  Nd3+ {[%clk 0:00:43]} 41. Kf1 {[%clk 0:00:20]}  Ke6 {[%clk 0:00:41]} 42. Be3 {[%clk 0:00:16]}  b6 {[%clk 0:00:40]} 43. Bf2 {[%clk 0:00:14]}  Nf4 {[%clk 0:00:37]} 44. Be3 {[%clk 0:00:13]}  Nd3 {[%clk 0:00:29]} 45. Bf2 {[%clk 0:00:13]}  Nb3 {[%clk 0:00:28]} 46. Be1 {[%clk 0:00:10]}  Nf4 {[%clk 0:00:27]} 47. Bf2 {[%clk 0:00:09]}  Nd2+ {[%clk 0:00:27]} 48. Kg1 {[%clk 0:00:08]}  Nc4 {[%clk 0:00:27]} 49. Kf1 {[%clk 0:00:07]}  Kd6 {[%clk 0:00:27]} 50. Bg1 {[%clk 0:00:06]}  Nb2 {[%clk 0:00:24]} 51. Bh2 {[%clk 0:00:05]}  Nbd3 {[%clk 0:00:24]} 52. Bxf4 {[%clk 0:00:05]}  Nxf4 {[%clk 0:00:25]} 53. Kf2 {[%clk 0:00:05]}  Kc5 {[%clk 0:00:25]} 54. Kf1 {[%clk 0:00:05]}  Kc4 {[%clk 0:00:25]} 55. Nd1 {[%clk 0:00:05]}  Kb4 {[%clk 0:00:24]} 56. Ne3 {[%clk 0:00:06]}  Kxa4 {[%clk 0:00:23]} 57. Ng4 {[%clk 0:00:06]}  Nh5 {[%clk 0:00:24]} 58. Nxf6 {[%clk 0:00:07]}  Nxf6 {[%clk 0:00:23]} 0-1


[Site "https://www.chess.com"]

[Event "Titled Tuesday Blitz August 09 Late 2022"]
[White "Sadilek, Peter"]
[Black "Grischuk, Alexander"]
[WhiteFideId "1616439"]
[BlackFideId "4126025"]
[WhiteElo "2145"]
[BlackElo "2762"]
[Result "0-1"]
[Round "03"]
[TimeControl "180+1"]
[Date "2022.08.09"]
[WhiteClock "0:00:07"]
[BlackClock "0:01:02"]

1. d4 {[%clk 0:02:54]}  Nf6 {[%clk 0:02:59]} 2. c4 {[%clk 0:02:53]}  e6 {[%clk 0:03:00]} 3. g3 {[%clk 0:02:51]}  d5 {[%clk 0:02:59]} 4. Bg2 {[%clk 0:02:52]}  dxc4 {[%clk 0:02:59]} 5. Nf3 {[%clk 0:02:52]}  a6 {[%clk 0:02:59]} 6. O-O {[%clk 0:02:49]}  Nc6 {[%clk 0:02:59]} 7. Bg5 {[%clk 0:02:37]}  Be7 {[%clk 0:02:56]} 8. e3 {[%clk 0:02:22]}  Rb8 {[%clk 0:02:53]} 9. Nfd2 {[%clk 0:01:57]}  e5 {[%clk 0:02:44]} 10. Bxf6 {[%clk 0:01:53]}  Bxf6 {[%clk 0:02:43]} 11. d5 {[%clk 0:01:36]}  Na7 {[%clk 0:02:33]} 12. Nxc4 {[%clk 0:01:35]}  Nb5 {[%clk 0:02:33]} 13. Nbd2 {[%clk 0:01:26]}  Bf5 {[%clk 0:02:30]} 14. Ne4 {[%clk 0:01:17]}  Bxe4 {[%clk 0:02:30]} 15. Bxe4 {[%clk 0:01:16]}  g6 {[%clk 0:02:13]} 16. Qc2 {[%clk 0:01:13]}  O-O {[%clk 0:02:11]} 17. Rfd1 {[%clk 0:01:11]}  Nd6 {[%clk 0:02:00]} 18. Nxd6 {[%clk 0:01:06]}  cxd6 {[%clk 0:02:01]} 19. Rac1 {[%clk 0:01:06]}  Bg7 {[%clk 0:02:01]} 20. Bg2 {[%clk 0:00:59]}  f5 {[%clk 0:02:02]} 21. Qc7 {[%clk 0:00:49]}  e4 {[%clk 0:02:01]} 22. b3 {[%clk 0:00:39]}  Rf7 {[%clk 0:01:58]} 23. Qxd8+ {[%clk 0:00:38]}  Rxd8 {[%clk 0:01:59]} 24. Bf1 {[%clk 0:00:37]}  Be5 {[%clk 0:01:59]} 25. a4 {[%clk 0:00:36]}  Kg7 {[%clk 0:01:59]} 26. Rc4 {[%clk 0:00:34]}  h5 {[%clk 0:01:55]} 27. Rdc1 {[%clk 0:00:32]}  h4 {[%clk 0:01:48]} 28. Rc7 {[%clk 0:00:32]}  Rdd7 {[%clk 0:01:49]} 29. Rxd7 {[%clk 0:00:32]}  Rxd7 {[%clk 0:01:50]} 30. b4 {[%clk 0:00:30]}  Kf6 {[%clk 0:01:45]} 31. b5 {[%clk 0:00:25]}  axb5 {[%clk 0:01:43]} 32. Bxb5 {[%clk 0:00:24]}  Rh7 {[%clk 0:01:27]} 33. a5 {[%clk 0:00:23]}  Bb2 {[%clk 0:01:26]} 34. Rc2 {[%clk 0:00:21]}  Ba3 {[%clk 0:01:26]} 35. a6 {[%clk 0:00:17]}  bxa6 {[%clk 0:01:27]} 36. Bxa6 {[%clk 0:00:18]}  Bc5 {[%clk 0:01:27]} 37. Bc8 {[%clk 0:00:13]}  Ke5 {[%clk 0:01:24]} 38. Be6 {[%clk 0:00:11]}  g5 {[%clk 0:01:23]} 39. Ra2 {[%clk 0:00:09]}  f4 {[%clk 0:01:22]} 40. gxf4+ {[%clk 0:00:09]}  gxf4 {[%clk 0:01:23]} 41. exf4+ {[%clk 0:00:07]}  Kxf4 {[%clk 0:01:24]} 42. Kg2 {[%clk 0:00:07]}  Rg7+ {[%clk 0:01:12]} 43. Kh3 {[%clk 0:00:08]}  Kf3 {[%clk 0:01:13]} 44. Kxh4 {[%clk 0:00:07]}  Bxf2+ {[%clk 0:01:12]} 45. Kh5 {[%clk 0:00:08]}  e3 {[%clk 0:01:13]} 46. h3 {[%clk 0:00:07]}  e2 {[%clk 0:01:03]} 47. Bg4+ {[%clk 0:00:07]}  Rxg4 {[%clk 0:01:02]} 48. hxg4 {[%clk 0:00:07]}  e1=Q {[%clk 0:01:02]} 0-1


[Site "https://www.chess.com"]

[Event "Titled Tuesday Blitz August 09 Late 2022"]
[White "Salem, A.R. Saleh"]
[Black "Amburgy, Ryan"]
[WhiteFideId "9301348"]
[BlackFideId "30924820"]
[WhiteElo "2674"]
[BlackElo "2066"]
[Result "1-0"]
[Round "03"]
[TimeControl "180+1"]
[Date "2022.08.09"]
[WhiteClock "0:01:03"]
[BlackClock "0:00:12"]

1. d4 {[%clk 0:03:00]}  Nf6 {[%clk 0:03:00]} 2. c4 {[%clk 0:03:00]}  e6 {[%clk 0:03:00]} 3. Nc3 {[%clk 0:03:00]}  Bb4 {[%clk 0:03:00]} 4. a3 {[%clk 0:03:00]}  Bxc3+ {[%clk 0:03:00]} 5. bxc3 {[%clk 0:03:01]}  c5 {[%clk 0:03:01]} 6. f3 {[%clk 0:03:02]}  O-O {[%clk 0:02:59]} 7. e4 {[%clk 0:03:02]}  d6 {[%clk 0:03:00]} 8. Bd3 {[%clk 0:03:02]}  Nc6 {[%clk 0:02:59]} 9. Ne2 {[%clk 0:03:02]}  b6 {[%clk 0:03:00]} 10. O-O {[%clk 0:03:01]}  Ba6 {[%clk 0:02:59]} 11. Bg5 {[%clk 0:03:01]}  Rc8 {[%clk 0:02:57]} 12. f4 {[%clk 0:02:58]}  Qc7 {[%clk 0:02:46]} 13. e5 {[%clk 0:02:48]}  Nd7 {[%clk 0:02:37]} 14. Ng3 {[%clk 0:02:46]}  cxd4 {[%clk 0:02:22]} 15. Qh5 {[%clk 0:02:24]}  f5 {[%clk 0:02:04]} 16. exf6 {[%clk 0:02:20]}  Nxf6 {[%clk 0:02:05]} 17. Bxf6 {[%clk 0:02:14]}  gxf6 {[%clk 0:02:06]} 18. Rae1 {[%clk 0:02:13]}  Qf7 {[%clk 0:01:51]} 19. Qh4 {[%clk 0:01:54]}  f5 {[%clk 0:01:25]} 20. Nh5 {[%clk 0:01:55]}  Kh8 {[%clk 0:01:17]} 21. Rf3 {[%clk 0:01:16]}  Rg8 {[%clk 0:01:14]} 22. Nf6 {[%clk 0:01:11]}  Rg7 {[%clk 0:00:53]} 23. Rh3 {[%clk 0:01:11]}  Rc7 {[%clk 0:00:51]} 24. Bxf5 {[%clk 0:01:08]}  Bb7 {[%clk 0:00:37]} 25. Bxh7 {[%clk 0:01:03]}  Rxh7 {[%clk 0:00:13]} 26. Nxh7 {[%clk 0:01:03]}  Qxh7 {[%clk 0:00:12]} 27. Qf6+ {[%clk 0:01:03]} 1-0


[Site "https://www.chess.com"]

[Event "Titled Tuesday Blitz August 09 Late 2022"]
[White "Shimanov, Aleksandr"]
[Black "Kosteniuk, Alexandra"]
[WhiteFideId "4198603"]
[BlackFideId "4128125"]
[WhiteElo "2605"]
[BlackElo "2469"]
[Result "1-0"]
[Round "03"]
[TimeControl "180+1"]
[Date "2022.08.09"]
[WhiteClock "0:00:18"]
[BlackClock "0:00:28"]

1. e4 {[%clk 0:03:00]}  c6 {[%clk 0:02:58]} 2. d4 {[%clk 0:03:00]}  d5 {[%clk 0:02:58]} 3. Nd2 {[%clk 0:03:01]}  dxe4 {[%clk 0:02:58]} 4. Nxe4 {[%clk 0:03:02]}  Nf6 {[%clk 0:02:59]} 5. Nxf6+ {[%clk 0:03:02]}  exf6 {[%clk 0:03:00]} 6. c3 {[%clk 0:03:02]}  Bd6 {[%clk 0:03:00]} 7. Bd3 {[%clk 0:03:01]}  O-O {[%clk 0:02:59]} 8. Qc2 {[%clk 0:02:59]}  Re8+ {[%clk 0:02:58]} 9. Ne2 {[%clk 0:02:59]}  h5 {[%clk 0:02:54]} 10. O-O {[%clk 0:02:59]}  Nd7 {[%clk 0:02:54]} 11. Ng3 {[%clk 0:02:58]}  Nf8 {[%clk 0:02:32]} 12. Nxh5 {[%clk 0:02:57]}  Qc7 {[%clk 0:02:11]} 13. f4 {[%clk 0:02:49]}  Bg4 {[%clk 0:02:09]} 14. Ng3 {[%clk 0:02:49]}  c5 {[%clk 0:02:08]} 15. h3 {[%clk 0:02:26]}  Bd7 {[%clk 0:02:03]} 16. Qf2 {[%clk 0:02:13]}  cxd4 {[%clk 0:01:58]} 17. cxd4 {[%clk 0:02:14]}  Qa5 {[%clk 0:01:50]} 18. Bd2 {[%clk 0:02:10]}  Qd5 {[%clk 0:01:48]} 19. Ne2 {[%clk 0:02:04]}  Ne6 {[%clk 0:01:38]} 20. Be3 {[%clk 0:01:27]}  Nc7 {[%clk 0:01:32]} 21. Nc3 {[%clk 0:01:24]}  Qa5 {[%clk 0:01:27]} 22. Rae1 {[%clk 0:01:20]}  Bb4 {[%clk 0:01:23]} 23. Bd2 {[%clk 0:01:17]}  Bxc3 {[%clk 0:01:21]} 24. bxc3 {[%clk 0:01:16]}  Qxa2 {[%clk 0:01:20]} 25. f5 {[%clk 0:01:03]}  Bb5 {[%clk 0:01:14]} 26. c4 {[%clk 0:00:48]}  Qb3 {[%clk 0:00:51]} 27. Qg3 {[%clk 0:00:40]}  Bxc4 {[%clk 0:00:48]} 28. Bh6 {[%clk 0:00:39]}  g5 {[%clk 0:00:40]} 29. fxg6 {[%clk 0:00:39]}  Ne6 {[%clk 0:00:34]} 30. gxf7+ {[%clk 0:00:35]}  Kxf7 {[%clk 0:00:34]} 31. d5 {[%clk 0:00:27]}  Qxd3 {[%clk 0:00:31]} 32. dxe6+ {[%clk 0:00:26]}  Rxe6 {[%clk 0:00:31]} 33. Qg7+ {[%clk 0:00:24]}  Ke8 {[%clk 0:00:32]} 34. Rxe6+ {[%clk 0:00:18]}  Bxe6 {[%clk 0:00:31]} 35. Qf8+ {[%clk 0:00:19]}  Kd7 {[%clk 0:00:31]} 36. Qxa8 {[%clk 0:00:19]}  Bc4 {[%clk 0:00:28]} 37. Qxb7+ {[%clk 0:00:18]} 1-0


[Site "https://www.chess.com"]

[Event "Titled Tuesday Blitz August 09 Late 2022"]
[White "Svane, Frederik"]
[Black "Rego, Pedro Filipe"]
[WhiteFideId "12923044"]
[BlackFideId "1904310"]
[WhiteElo "2459"]
[BlackElo "2125"]
[Result "1-0"]
[Round "03"]
[TimeControl "180+1"]
[Date "2022.08.09"]
[WhiteClock "0:00:43"]
[BlackClock "0:00:11"]

1. c4 {[%clk 0:03:00]}  Nf6 {[%clk 0:02:59]} 2. Nc3 {[%clk 0:03:00]}  e6 {[%clk 0:02:59]} 3. e4 {[%clk 0:03:01]}  d5 {[%clk 0:02:57]} 4. cxd5 {[%clk 0:03:02]}  exd5 {[%clk 0:02:56]} 5. e5 {[%clk 0:03:02]}  Ne4 {[%clk 0:02:57]} 6. Nf3 {[%clk 0:03:02]}  Be7 {[%clk 0:02:52]} 7. d4 {[%clk 0:02:54]}  c5 {[%clk 0:02:41]} 8. Bb5+ {[%clk 0:02:53]}  Nc6 {[%clk 0:02:37]} 9. O-O {[%clk 0:02:53]}  O-O {[%clk 0:02:32]} 10. dxc5 {[%clk 0:02:42]}  Nxc3 {[%clk 0:02:22]} 11. bxc3 {[%clk 0:02:43]}  Bxc5 {[%clk 0:02:21]} 12. Bd3 {[%clk 0:02:40]}  Bg4 {[%clk 0:02:18]} 13. h3 {[%clk 0:02:38]}  Bxf3 {[%clk 0:02:16]} 14. Qxf3 {[%clk 0:02:39]}  Nxe5 {[%clk 0:02:13]} 15. Bxh7+ {[%clk 0:02:39]}  Kxh7 {[%clk 0:02:12]} 16. Qh5+ {[%clk 0:02:39]}  Kg8 {[%clk 0:02:10]} 17. Qxe5 {[%clk 0:02:40]}  Re8 {[%clk 0:01:59]} 18. Qf5 {[%clk 0:02:40]}  Rc8 {[%clk 0:01:56]} 19. Bg5 {[%clk 0:02:34]}  Be7 {[%clk 0:01:48]} 20. Bxe7 {[%clk 0:02:19]}  Rxe7 {[%clk 0:01:45]} 21. Rad1 {[%clk 0:02:18]}  Qd7 {[%clk 0:01:33]} 22. Qg5 {[%clk 0:02:13]}  Qe6 {[%clk 0:01:09]} 23. Rxd5 {[%clk 0:02:08]}  Rxc3 {[%clk 0:01:08]} 24. Rfd1 {[%clk 0:01:52]}  Rc8 {[%clk 0:01:01]} 25. Qh4 {[%clk 0:01:46]}  g6 {[%clk 0:00:55]} 26. Qh6 {[%clk 0:01:36]}  Ree8 {[%clk 0:00:47]} 27. Rd7 {[%clk 0:01:32]}  Re7 {[%clk 0:00:43]} 28. R7d6 {[%clk 0:01:31]}  Qe5 {[%clk 0:00:36]} 29. R1d5 {[%clk 0:01:19]}  Qe1+ {[%clk 0:00:30]} 30. Kh2 {[%clk 0:01:20]}  Qxf2 {[%clk 0:00:30]} 31. Rxg6+ {[%clk 0:01:09]}  fxg6 {[%clk 0:00:30]} 32. Qxg6+ {[%clk 0:01:09]}  Rg7 {[%clk 0:00:30]} 33. Qe6+ {[%clk 0:01:10]}  Qf7 {[%clk 0:00:21]} 34. Qxc8+ {[%clk 0:01:07]}  Kh7 {[%clk 0:00:20]} 35. Qc2+ {[%clk 0:01:00]}  Rg6 {[%clk 0:00:12]} 36. Rh5+ {[%clk 0:00:43]}  Kg8 {[%clk 0:00:11]} 37. Qc8+ {[%clk 0:00:42]}  Qf8 {[%clk 0:00:11]} 38. Rh8+ {[%clk 0:00:42]}  Kxh8 {[%clk 0:00:11]} 39. Qxf8+ {[%clk 0:00:43]} 1-0


[Site "https://www.chess.com"]

[Event "Titled Tuesday Blitz August 09 Late 2022"]
[White "Yanchenko, Roman"]
[Black "Karimov, Alisher"]
[WhiteFideId "4137329"]
[BlackFideId "14700280"]
[WhiteElo "2514"]
[BlackElo "2186"]
[Result "1-0"]
[Round "03"]
[TimeControl "180+1"]
[Date "2022.08.09"]
[WhiteClock "0:01:09"]
[BlackClock "0:00:05"]

1. d4 {[%clk 0:02:52]}  Nf6 {[%clk 0:02:58]} 2. c4 {[%clk 0:02:52]}  e6 {[%clk 0:02:46]} 3. Nf3 {[%clk 0:02:53]}  b6 {[%clk 0:02:46]} 4. Nc3 {[%clk 0:02:52]}  Bb4 {[%clk 0:02:34]} 5. e3 {[%clk 0:02:51]}  Bb7 {[%clk 0:02:32]} 6. Bd3 {[%clk 0:02:51]}  O-O {[%clk 0:02:30]} 7. O-O {[%clk 0:02:51]}  Re8 {[%clk 0:02:28]} 8. Bd2 {[%clk 0:02:50]}  d6 {[%clk 0:02:26]} 9. a3 {[%clk 0:02:49]}  Bxc3 {[%clk 0:02:25]} 10. Bxc3 {[%clk 0:02:50]}  Ne4 {[%clk 0:02:24]} 11. Bxe4 {[%clk 0:02:48]}  Bxe4 {[%clk 0:02:25]} 12. d5 {[%clk 0:02:48]}  e5 {[%clk 0:02:05]} 13. Nd2 {[%clk 0:02:43]}  Bg6 {[%clk 0:02:04]} 14. f4 {[%clk 0:02:42]}  exf4 {[%clk 0:01:57]} 15. exf4 {[%clk 0:02:43]}  Bd3 {[%clk 0:01:30]} 16. Qg4 {[%clk 0:02:42]}  f6 {[%clk 0:01:19]} 17. Rfe1 {[%clk 0:02:40]}  Nd7 {[%clk 0:01:13]} 18. Re6 {[%clk 0:02:17]}  Bg6 {[%clk 0:01:05]} 19. Rae1 {[%clk 0:02:08]}  Nf8 {[%clk 0:00:49]} 20. f5 {[%clk 0:01:54]}  Bf7 {[%clk 0:00:34]} 21. Ne4 {[%clk 0:01:41]}  Nd7 {[%clk 0:00:29]} 22. Bxf6 {[%clk 0:01:08]}  Nxf6 {[%clk 0:00:25]} 23. Nxf6+ {[%clk 0:01:08]}  Qxf6 {[%clk 0:00:19]} 24. Rxf6 {[%clk 0:01:08]}  Rxe1+ {[%clk 0:00:20]} 25. Kf2 {[%clk 0:01:09]}  Rae8 {[%clk 0:00:21]} 26. Re6 {[%clk 0:01:09]}  Bxe6 {[%clk 0:00:15]} 27. dxe6 {[%clk 0:01:09]}  Re5 {[%clk 0:00:12]} 28. f6 {[%clk 0:01:09]}  g5 {[%clk 0:00:02]} 29. f7+ {[%clk 0:01:09]}  Kf8 {[%clk 0:00:03]} 30. fxe8=Q+ {[%clk 0:01:08]}  Kxe8 {[%clk 0:00:04]} 31. Qh5+ {[%clk 0:01:08]}  Ke7 {[%clk 0:00:05]} 32. Qf7+ {[%clk 0:01:09]} 1-0


[Site "https://www.chess.com"]

[Event "Titled Tuesday Blitz August 09 Late 2022"]
[White "Andreikin, Dmitry"]
[Black "Djordjevic, Vuk"]
[WhiteFideId "4158814"]
[BlackFideId "902098"]
[WhiteElo "2736"]
[BlackElo "2456"]
[Result "1-0"]
[Round "04"]
[TimeControl "180+1"]
[Date "2022.08.09"]
[WhiteClock "0:00:59"]
[BlackClock "0:00:04"]

1. d4 {[%clk 0:03:00]}  Nf6 {[%clk 0:02:59]} 2. c4 {[%clk 0:03:01]}  e6 {[%clk 0:03:00]} 3. Nf3 {[%clk 0:03:00]}  b6 {[%clk 0:03:00]} 4. Bf4 {[%clk 0:02:58]}  Bb7 {[%clk 0:02:51]} 5. e3 {[%clk 0:02:58]}  d6 {[%clk 0:02:50]} 6. Nc3 {[%clk 0:02:57]}  Nbd7 {[%clk 0:02:46]} 7. h3 {[%clk 0:02:53]}  g6 {[%clk 0:02:46]} 8. Be2 {[%clk 0:02:51]}  Bg7 {[%clk 0:02:46]} 9. O-O {[%clk 0:02:51]}  O-O {[%clk 0:02:46]} 10. Bh2 {[%clk 0:02:49]}  Ne4 {[%clk 0:02:29]} 11. Nxe4 {[%clk 0:02:48]}  Bxe4 {[%clk 0:02:30]} 12. Rc1 {[%clk 0:02:47]}  a5 {[%clk 0:02:26]} 13. Nd2 {[%clk 0:02:47]}  Bb7 {[%clk 0:02:24]} 14. Bf3 {[%clk 0:02:47]}  Qc8 {[%clk 0:02:22]} 15. Qa4 {[%clk 0:02:46]}  Rd8 {[%clk 0:02:11]} 16. Rfd1 {[%clk 0:02:45]}  e5 {[%clk 0:02:09]} 17. dxe5 {[%clk 0:02:38]}  Nxe5 {[%clk 0:02:06]} 18. Bxe5 {[%clk 0:02:36]}  Bxe5 {[%clk 0:02:04]} 19. b3 {[%clk 0:02:36]}  Kg7 {[%clk 0:01:44]} 20. Bc6 {[%clk 0:02:35]}  Rb8 {[%clk 0:01:42]} 21. Nf3 {[%clk 0:02:32]}  Bf6 {[%clk 0:01:42]} 22. Rd5 {[%clk 0:02:32]}  Bxc6 {[%clk 0:01:28]} 23. Qxc6 {[%clk 0:02:32]}  Qb7 {[%clk 0:01:28]} 24. Qxb7 {[%clk 0:02:32]}  Rxb7 {[%clk 0:01:28]} 25. Rcd1 {[%clk 0:02:31]}  Re8 {[%clk 0:01:24]} 26. g4 {[%clk 0:02:31]}  h6 {[%clk 0:01:22]} 27. Kg2 {[%clk 0:02:31]}  Re4 {[%clk 0:01:11]} 28. Nd2 {[%clk 0:02:30]}  Re8 {[%clk 0:01:11]} 29. Kf3 {[%clk 0:02:30]}  Be5 {[%clk 0:00:57]} 30. Ke2 {[%clk 0:02:25]}  Ra7 {[%clk 0:00:47]} 31. Nf3 {[%clk 0:02:22]}  Bf6 {[%clk 0:00:47]} 32. Kd3 {[%clk 0:02:16]}  a4 {[%clk 0:00:44]} 33. b4 {[%clk 0:02:16]}  a3 {[%clk 0:00:45]} 34. b5 {[%clk 0:02:12]}  Ra4 {[%clk 0:00:44]} 35. Rb1 {[%clk 0:02:11]}  Rc8 {[%clk 0:00:44]} 36. Rb3 {[%clk 0:02:08]}  Kf8 {[%clk 0:00:35]} 37. Nd2 {[%clk 0:02:07]}  Ke7 {[%clk 0:00:32]} 38. Ne4 {[%clk 0:02:07]}  Bg7 {[%clk 0:00:31]} 39. Ng3 {[%clk 0:02:05]}  c6 {[%clk 0:00:25]} 40. bxc6 {[%clk 0:02:01]}  Rxc6 {[%clk 0:00:26]} 41. Ne4 {[%clk 0:01:25]}  Raxc4 {[%clk 0:00:24]} 42. Rxa3 {[%clk 0:01:20]}  Ke6 {[%clk 0:00:17]} 43. Rxd6+ {[%clk 0:01:15]}  Rxd6+ {[%clk 0:00:16]} 44. Nxd6 {[%clk 0:01:16]}  Rc1 {[%clk 0:00:13]} 45. Ne4 {[%clk 0:01:14]}  Be5 {[%clk 0:00:07]} 46. Ra6 {[%clk 0:01:11]}  Bc7 {[%clk 0:00:07]} 47. Ra8 {[%clk 0:01:10]}  Rh1 {[%clk 0:00:05]} 48. Rh8 {[%clk 0:01:08]}  Ke5 {[%clk 0:00:03]} 49. f4+ {[%clk 0:01:02]}  Kd5 {[%clk 0:00:03]} 50. Nc3+ {[%clk 0:01:02]}  Kd6 {[%clk 0:00:03]} 51. Rxh6 {[%clk 0:01:01]}  Ke7 {[%clk 0:00:03]} 52. Nd5+ {[%clk 0:00:59]}  Kd6 {[%clk 0:00:03]} 53. Nxc7 {[%clk 0:00:59]}  Kxc7 {[%clk 0:00:04]} 54. Rh7 {[%clk 0:00:59]} 1-0


[Site "https://www.chess.com"]